bitfinex/quotes_ETHUSD_20250626
["timestamp","ask_amount","ask_price","bid_price","bid_amount"]
[1750923922033,0.8068,2495.4,2494.9,0.8117]
[1750923922186,1.0068,2495.4,2495.0,2.60520366]
[1750923923115,1.0068,2495.4,2494.9,7.3527]
[1750923923297,1.0068,2495.4,2494.9,9.14626956]
[1750923923697,1.0068,2495.4,2495.0,2.60519701]
[1750923924115,1.0068,2495.4,2494.9,6.541]
[1750923924327,2.20325221,2495.4,2494.9,6.541]
[1750923924832,2.20325221,2495.4,2494.9,9.14629839]
[1750923925197,2.20325221,2495.4,2495.0,2.60520441]
[1750923925529,2.20325221,2495.4,2495.1,2.60509841]
[1750923925730,1.0068,2495.4,2495.2,2.60495098]
[1750923925949,0.8068,2495.6,2495.2,2.60495098]
[1750923926108,0.2,2495.5,2495.3,2.60489395]
[1750923926428,0.2,2495.5,2495.1,2.80509759]
[1750923926429,0.2,2495.5,2495.2,2.60493837]
[1750923927914,0.2,2495.5,2495.1,0.2]
[1750923928110,0.2,2495.5,2495.2,2.60499985]
[1750923928910,0.2,2495.5,2495.3,2.60489267]
[1750923929110,0.2,2495.5,2495.1,1.0322]
[1750923929421,0.2,2495.9,2495.7,2.60446817]
[1750923930333,0.2,2495.9,2495.8,2.60437535]
[1750923930514,0.2,2496.2,2495.8,2.60431457]
[1750923930841,0.2,2496.2,2495.7,2.80446497]
[1750923931214,0.2,2496.2,2495.8,2.604371]
[1750923931409,0.56310806,2496.2,2495.8,2.604371]
[1750923931821,0.56310806,2496.2,2495.7,0.2]
[1750923932026,0.56310806,2496.2,2495.7,2.80442522]
[1750923932227,0.56310806,2496.2,2495.8,2.60437205]
[1750923932917,0.56310806,2496.2,2495.7,2.80444402]
[1750923933116,0.56310806,2496.2,2495.8,2.60436252]
[1750923933835,0.56310806,2496.2,2495.7,2.80441637]
[1750923934551,0.56310806,2496.2,2495.8,2.60436846]
[1750923935248,0.2,2496.2,2495.9,2.60424928]
[1750923935811,0.2,2496.2,2495.7,2.80443515]
[1750923936017,0.2,2496.2,2496.0,2.60407326]
[1750923936457,1.695,2496.5,2496.1,2.60406233]
[1750923936749,0.2,2496.4,2496.1,2.60406233]
[1750923936957,0.2,2496.4,2496.2,2.60394942]
[1750923937116,0.7946,2496.8,2496.3,2.6038537]
[1750923937117,1.695,2496.6,2496.3,2.6038537]
[1750923937312,1.695,2496.6,2496.3,0.2]
[1750923937537,0.786,2496.5,2495.9,0.55]
[1750923937735,0.786,2496.5,2496.1,0.2]
[1750923938141,0.786,2496.5,2496.1,2.80404756]
[1750923938335,1.236306,2496.5,2496.1,0.2]
[1750923938545,1.236306,2496.5,2495.6,1.3395]
[1750923938722,0.2,2496.3,2495.8,0.2]
[1750923938923,0.786,2496.2,2495.8,0.2]
[1750923939731,0.786,2496.2,2495.6,2.60457117]
[1750923940052,0.2,2496.0,2495.5,2.80460738]
[1750923940254,0.2,2496.0,2495.6,2.60457914]
[1750923941155,0.2,2496.0,2495.7,2.60445865]
[1750923941325,0.2,2496.0,2495.6,2.60453345]
[1750923941855,0.2,2496.0,2495.7,2.60447509]
[1750923942261,0.2,2496.0,2495.8,2.60436381]
[1750923942482,0.786,2496.2,2495.9,2.604271]
[1750923942680,0.786,2496.2,2496.0,2.60416567]
[1750923942980,0.786,2496.2,2495.9,2.60421947]
[1750923943465,0.786,2496.2,2495.8,2.80430352]
[1750923944470,0.786,2496.2,2495.9,2.60426393]
[1750923944654,0.786,2496.2,2495.8,2.80432133]
[1750923945077,0.786,2496.2,2495.8,0.2]
[1750923945610,0.786,2496.2,2495.8,2.80436449]
[1750923946494,0.2,2496.3,2495.8,0.2]
[1750923946700,0.005,2497.0,2496.5,11.3713]
[1750923946850,0.005,2497.0,2496.9,3.153228]
[1750923947055,0.005,2497.0,2496.6,13.56789282]
[1750923947056,0.005,2497.0,2496.7,0.55]
[1750923947257,0.7816,2497.0,2496.5,2.60363536]
[1750923947452,0.7816,2497.0,2496.5,6.607]
[1750923947699,0.7816,2497.0,2496.8,2.60326503]
[1750923948202,0.005,2497.0,2496.8,2.60328267]
[1750923948360,0.005,2497.0,2496.9,2.603228]
[1750923949888,0.005,2497.0,2496.8,9.21128368]
[1750923950993,0.005,2497.0,2496.9,2.603228]
[1750923951189,0.005,2497.0,2496.8,9.21127718]
[1750923951693,0.005,2497.0,2496.8,2.60327718]
[1750923951857,0.005,2497.0,2496.9,6.604]
[1750923953005,0.005,2497.0,2496.3,0.7921]
[1750923953310,0.8248,2496.9,2496.6,6.602]
[1750923953772,0.8248,2496.9,2496.5,6.604]
[1750923954100,0.8248,2496.9,2496.4,2.60369445]
[1750923954272,0.8248,2496.9,2496.5,6.604]
[1750923955813,0.8248,2496.9,2496.5,9.20760199]
[1750923956107,0.8248,2496.9,2496.5,6.604]
[1750923956489,0.8248,2496.9,2496.5,9.20758583]
[1750923956695,0.2,2496.8,2496.5,9.20758583]
[1750923956894,0.005,2497.0,2496.7,2.60343653]
[1750923957202,0.005,2497.0,2496.8,2.60328701]
[1750923957414,0.005,2497.0,2496.6,3.59650778]
[1750923957415,0.005,2497.0,2496.7,2.60338471]
[1750923958985,0.005,2497.0,2496.8,2.60333078]
[1750923959299,0.005,2497.0,2496.7,2.60338668]
[1750923960490,0.005,2497.0,2496.6,2.80349111]
[1750923960693,0.005,2497.0,2496.6,0.2]
[1750923960873,0.005,2497.0,2496.6,2.80348173]
[1750923961274,0.005,2497.0,2496.6,0.2]
[1750923961474,0.005,2497.0,2496.7,6.595]
[1750923961714,0.005,2497.0,2496.7,9.19743111]
[1750923961920,0.005,2497.0,2496.6,2.80348137]
[1750923962218,0.005,2497.0,2496.7,6.593]
[1750923962524,0.005,2497.0,2496.9,2.603228]
[1750923963282,0.005,2497.0,2496.9,3.78318992]
[1750923963541,0.005,2497.0,2496.9,3.98318992]
[1750923973559,0.005,2497.0,2496.9,11.47059723]
[1750923973942,0.005,2497.0,2496.9,12.29359723]
[1750923974840,0.005,2497.0,2496.9,22.29359723]
[1750923977371,0.005,2497.0,2496.9,28.87859723]
[1750923978466,0.01,2497.1,2497.0,12.60312374]
[1750923978647,0.005,2497.7,2497.6,10.8711057]
[1750923978837,0.005,2497.7,2497.6,19.1861057]
[1750923979161,0.005,2497.7,2497.6,12.24869839]
[1750923979354,0.005,2497.7,2497.6,19.1861057]
[1750923979768,0.005,2497.7,2497.6,10.8711057]
[1750923979931,0.005,2497.7,2497.6,4.33246031]
[1750923980139,0.7597,2497.7,2497.1,7.74800731]
[1750923980340,0.7597,2497.7,2497.4,2.60264553]
[1750923980647,0.005,2497.7,2497.6,10.3505057]
[1750923980851,0.005,2497.7,2497.6,16.9365057]
[1750923981371,0.005,2497.7,2497.6,17.4865057]
[1750923981670,0.005,2497.7,2497.6,16.6759057]
[1750923982472,0.005,2497.7,2497.6,9.73849839]
[1750923983977,0.005,2497.7,2497.6,10.55829839]
[1750923986268,0.005,2497.7,2497.6,3.97229839]
[1750923986476,0.005,2497.7,2497.6,12.30329839]
[1750923988192,0.005,2497.7,2497.6,22.30329839]
[1750923988592,0.005,2497.7,2497.6,22.50329839]
[1750923988992,0.005,2497.7,2497.6,22.50029839]
[1750923992094,0.005,2497.7,2497.6,22.30029839]
[1750923993093,0.005,2497.7,2497.6,26.30029839]
[1750923994506,0.005,2497.7,2497.6,26.31329839]
[1750923995012,0.005,2497.7,2497.6,17.97229839]
[1750923995314,0.005,2497.7,2497.6,26.30829839]
[1750923995793,0.005,2497.7,2497.6,22.30829839]
[1750923998715,0.005,2497.7,2497.6,26.30829839]
[1750923999796,0.005,2497.8,2497.7,13.1523942]
[1750923999996,0.005,2497.8,2497.7,24.87980151]
[1750924000912,0.2214763,2498.1,2498.0,3.15208166]
[1750924001112,0.1714763,2498.1,2498.0,17.49798897]
[1750924002092,0.1714763,2498.1,2498.0,17.69798897]
[1750924003189,0.52384022,2499.2,2498.9,0.828]
[1750924003387,0.32384022,2499.2,2499.1,2.80093633]
[1750924003707,0.32384022,2499.2,2499.1,16.92734364]
[1750924003896,0.32384022,2499.2,2499.1,17.75534364]
[1750924004419,0.32384022,2499.2,2499.1,17.55534364]
[1750924005313,0.32384022,2499.2,2499.1,27.55534364]
[1750924006489,0.32384022,2499.2,2499.1,29.28334364]
[1750924007200,0.32384022,2499.2,2499.1,13.97893633]
[1750924007397,0.32384022,2499.2,2499.1,29.28334364]
[1750924008196,0.32384022,2499.2,2499.1,20.91634364]
[1750924008594,0.32384022,2499.2,2499.1,29.28134364]
[1750924008795,0.32384022,2499.2,2499.1,13.97893633]
[1750924009192,0.32384022,2499.2,2499.1,22.34193633]
[1750924009528,0.7515,2500.5,2500.0,2.59998982]
[1750924009691,0.7515,2500.5,2500.2,3.14979201]
[1750924009890,0.7515,2500.5,2500.3,6.644]
[1750924010096,0.7515,2500.5,2500.4,6.644]
[1750924010615,0.7515,2500.5,2500.3,6.646]
[1750924011124,0.7515,2500.5,2500.2,6.646]
[1750924011492,0.7931,2500.4,2500.2,6.646]
[1750924012699,0.7931,2500.4,2500.0,6.646]
[1750924012898,0.7931,2500.4,2499.8,6.647]
[1750924013304,0.7931,2500.4,2499.4,0.55]
[1750924013505,0.7931,2500.4,2499.5,6.647]
[1750924013705,0.7936,2500.2,2499.5,6.647]
[1750924014037,1.729,2500.2,2499.5,6.647]
[1750924014336,0.2,2500.0,2499.6,0.2]
[1750924014635,0.7513,2499.9,2499.6,0.2]
[1750924014837,0.7513,2499.9,2499.6,3.15037751]
[1750924015016,0.7513,2499.9,2499.8,0.2]
[1750924015204,0.7513,2499.9,2499.8,6.844]
[1750924017652,0.7513,2499.9,2499.8,0.2]
[1750924017856,0.7513,2499.9,2499.1,2.60093558]
[1750924018153,0.7762,2499.7,2499.3,0.2]
[1750924018938,0.7762,2499.7,2498.8,2.60120972]
[1750924019269,0.7937,2499.5,2498.6,4.35939913]
[1750924019437,0.2,2499.4,2498.9,6.843]
[1750924019643,0.7736,2499.3,2498.9,0.2]
[1750924019827,0.7736,2499.3,2498.4,2.60162393]
[1750924020164,0.8313,2498.9,2498.6,0.2]
[1750924021035,0.8313,2498.9,2498.6,2.60140866]
[1750924021237,0.8313,2498.9,2498.7,0.2]
[1750924024561,0.8313,2498.9,2498.7,6.84]
[1750924025475,0.8313,2498.9,2498.7,6.64]
[1750924028074,0.7806,2499.3,2498.7,7.58415429]
[1750924028374,0.7806,2499.3,2498.9,2.60110089]
[1750924028681,0.7806,2499.3,2498.7,9.24132172]
[1750924028682,0.7806,2499.3,2498.8,2.60118828]
[1750924028842,0.7806,2499.3,2498.9,2.60112709]
[1750924029338,0.7806,2499.3,2498.5,10.0]
[1750924029546,0.7806,2499.3,2498.7,2.6012799]
[1750924029874,0.7806,2499.3,2497.7,0.8159]
[1750924030079,0.7806,2499.3,2498.3,2.60171586]
[1750924030374,0.7806,2499.3,2498.4,6.641]
[1750924030556,0.7999,2499.1,2498.4,6.641]
[1750924030757,0.7999,2499.0,2497.9,2.60212109]
[1750924031075,0.7999,2499.0,2498.1,2.60196985]
[1750924031377,0.7999,2499.0,2498.2,6.64]
[1750924031587,0.7999,2499.0,2497.9,2.60210347]
[1750924031886,0.7999,2498.8,2497.9,2.60210347]
[1750924032089,0.7999,2498.8,2498.0,6.639]
[1750924032543,0.7999,2498.8,2497.9,2.60210347]
[1750924032757,0.7999,2498.8,2497.8,2.60224204]
[1750924032962,0.7999,2498.8,2497.9,6.639]
[1750924033169,0.777,2498.6,2497.9,9.24113348]
[1750924033387,0.777,2498.4,2497.9,6.639]
[1750924033785,0.777,2498.4,2497.6,2.60241889]
[1750924034271,0.777,2498.4,2497.0,0.8166]
[1750924034470,0.777,2498.4,2497.4,2.60264042]
[1750924034662,0.7712,2498.2,2497.4,2.60264042]
[1750924035009,0.7712,2498.1,2497.0,2.60305159]
[1750924035161,0.7712,2498.1,2496.8,8.36126854]
[1750924035361,0.767,2498.1,2496.9,2.60316361]
[1750924035705,0.767,2498.1,2496.9,2.60321021]
[1750924035706,0.767,2498.0,2496.9,2.60321021]
[1750924035884,0.767,2498.0,2496.9,6.643]
[1750924036197,0.8257,2497.8,2496.9,9.2462101]
[1750924036435,0.8257,2497.6,2496.7,2.60340472]
[1750924036597,0.8257,2497.6,2496.7,9.24738262]
[1750924037168,0.8257,2497.6,2496.8,2.6033166]
[1750924037513,0.8257,2497.6,2496.7,9.24738303]
[1750924037689,0.8257,2497.4,2496.7,9.24738303]
[1750924038070,0.2,2497.2,2496.7,6.844]
[1750924038386,0.8257,2497.1,2496.7,6.844]
[1750924038596,0.8257,2497.1,2496.7,9.44741339]
[1750924038764,0.8257,2497.1,2496.7,6.644]
[1750924038971,1.0257,2497.1,2496.7,9.24738928]
[1750924039472,1.0257,2497.1,2496.7,6.644]
[1750924041187,1.0257,2497.1,2496.8,2.60332951]
[1750924041684,1.0257,2497.1,2496.8,3.80836971]
[1750924042084,1.0257,2497.1,2496.8,1.20508566]
[1750924042284,1.0257,2497.1,2496.7,6.644]
[1750924042507,1.0257,2497.1,2496.7,9.24743594]
[1750924043031,1.0257,2497.1,2496.7,6.644]
[1750924043410,1.0257,2497.1,2496.7,9.24741399]
[1750924043619,1.0257,2497.1,2496.6,0.2]
[1750924043803,1.0257,2497.1,2496.7,6.637]
[1750924044418,1.0257,2497.1,2496.7,9.2404355]
[1750924045744,1.0257,2497.1,2496.7,6.637]
[1750924045912,1.0257,2497.1,2496.8,2.60332875]
[1750924046542,1.0257,2497.1,2496.7,10.18444186]
[1750924046851,2.01737,2497.5,2495.9,0.7532]
[1750924046852,11.759,2497.0,2495.9,0.7532]
[1750924047130,0.7553,2496.6,2495.9,6.838]
[1750924047341,0.2,2496.3,2495.9,0.2]
[1750924047509,0.7553,2496.2,2495.5,6.638]
[1750924047711,10.0,2496.6,2495.5,1.10018344]
[1750924047712,0.7553,2496.1,2495.5,1.10018344]
[1750924048040,0.7553,2495.7,2495.3,8.597]
[1750924048520,0.7553,2495.7,2495.3,0.2]
[1750924053117,0.7553,2495.7,2495.3,2.80487828]
[1750924053323,0.7553,2495.7,2495.5,2.6046609]
[1750924053527,0.2,2495.8,2495.6,2.60458406]
[1750924053727,7.81,2496.8,2495.9,2.604271]
[1750924053728,0.8182,2496.0,2495.9,2.604271]
[1750924053943,0.2,2496.2,2496.0,2.60414201]
[1750924054240,0.8182,2496.3,2495.7,7.1599245]
[1750924054448,0.8182,2496.3,2496.0,2.60410443]
[1750924055014,0.8182,2496.3,2495.9,0.2]
[1750924055228,0.8182,2496.3,2496.2,2.60395801]
[1750924055631,0.8182,2496.3,2495.3,0.7764]
[1750924055856,1.0182,2496.3,2495.8,2.80431974]
[1750924056350,1.0182,2496.3,2495.9,2.6042674]
[1750924057058,1.0182,2496.3,2495.8,2.8043253]
[1750924057244,1.0182,2496.3,2495.4,2.60474449]
[1750924057245,0.8182,2496.3,2495.4,2.60474449]
[1750924057449,1.23202553,2496.3,2495.5,0.92457445]
[1750924057648,1.23202553,2496.3,2495.4,2.60473682]
[1750924058330,0.8182,2496.3,2495.4,0.55]
[1750924058530,0.8182,2496.3,2495.8,2.60435437]
[1750924058725,0.8182,2496.3,2495.9,2.60422863]
[1750924058931,0.8182,2496.3,2495.6,3.40554356]
[1750924059128,0.8182,2496.3,2495.6,2.60454356]
[1750924059462,0.8182,2496.3,2495.7,0.26045436]
[1750924060136,0.8182,2496.3,2495.7,2.86492765]
[1750924060538,0.8182,2496.3,2495.8,2.60429023]
[1750924060926,0.8182,2496.3,2495.7,2.86488045]
[1750924061858,0.8182,2496.3,2495.9,2.60426448]
[1750924062170,0.8182,2496.3,2495.9,3.15117849]
[1750924062958,10.94927779,2496.6,2495.9,3.15117849]
[1750924062959,2.70527779,2496.6,2495.9,1.35191401]
[1750924063159,2.5518,2496.6,2496.2,2.60390477]
[1750924063930,2.5518,2496.6,2496.3,2.60379626]
[1750924064129,0.7958,2496.6,2496.3,2.60379626]
[1750924064575,0.7958,2496.6,2496.4,2.60370498]
[1750924064869,0.7958,2496.6,2496.4,0.52075967]
[1750924065068,0.7958,2496.6,2496.2,2.60395321]
[1750924065565,0.7958,2496.6,2496.3,2.60385261]
[1750924066642,0.7958,2496.6,2496.2,2.60389769]
[1750924067053,0.7958,2496.6,2496.1,0.55]
[1750924067253,0.7958,2496.6,2496.2,0.2]
[1750924068046,0.9958,2496.6,2496.1,0.2]
[1750924069636,0.7573,2496.5,2495.8,0.55]
[1750924069842,0.7573,2496.2,2495.8,0.2]
[1750924070856,0.7573,2496.2,2495.4,2.60471855]
[1750924071190,0.2,2495.9,2495.5,6.837]
[1750924071394,0.2,2495.9,2495.5,0.2]
[1750924071583,0.2,2495.9,2495.6,6.635]
[1750924072397,0.7885,2495.8,2495.5,6.633]
[1750924072556,0.9885,2495.8,2495.5,6.633]
[1750924074695,0.7885,2495.8,2495.5,6.633]
[1750924075205,0.7885,2495.8,2495.5,9.23761828]
[1750924075422,0.7885,2495.8,2495.6,0.2]
[1750924075701,0.7885,2495.8,2495.6,1.40423519]
[1750924075911,0.2,2496.0,2495.6,1.40423519]
[1750924075912,1.0176,2496.0,2495.6,1.40423519]
[1750924078398,1.0176,2496.0,2495.6,0.2]
[1750924079994,1.0176,2496.0,2495.5,6.633]
[1750924079995,0.8176,2496.0,2495.5,6.633]
[1750924080168,0.2,2495.9,2495.5,6.633]
[1750924081328,1.15807614,2495.9,2495.5,6.633]
[1750924081544,0.2,2495.9,2495.5,6.633]
[1750924081686,1.15819462,2495.9,2495.5,6.633]
[1750924082083,0.7948,2495.8,2495.0,0.8026]
[1750924082314,0.2,2495.5,2495.1,0.2]
[1750924082503,0.7948,2495.4,2494.8,7.3984]
[1750924082710,0.2,2495.3,2494.9,1.33984]
[1750924083223,0.2,2495.3,2494.9,7.96384]
[1750924083430,0.2,2495.3,2494.5,2.60568514]
[1750924083431,0.7853,2495.2,2494.5,0.7994]
[1750924083608,0.2,2495.0,2494.6,10.824]
[1750924083809,0.2,2495.0,2494.6,6.824]
[1750924085295,0.2,2495.0,2494.6,0.2]
[1750924085903,0.7853,2495.2,2493.9,2.04281424]
[1750924085904,0.7522,2494.9,2493.9,2.04281424]
[1750924086104,0.2,2494.8,2494.3,0.2]
[1750924087037,0.7518,2494.7,2494.3,0.2]
[1750924087402,0.7518,2494.7,2494.1,0.38827142]
[1750924087599,0.2,2494.5,2494.1,0.58827142]
[1750924088247,0.2,2494.5,2494.1,3.19441772]
[1750924088415,0.2,2494.5,2494.1,0.58827142]
[1750924089230,0.2,2494.5,2494.1,3.19441869]
[1750924089735,0.2,2494.5,2494.1,0.58827142]
[1750924090117,0.2,2494.5,2494.1,0.2]
[1750924090516,0.7954,2494.4,2494.0,1.8399]
[1750924090719,0.2,2494.3,2494.1,6.623]
[1750924092329,0.2,2494.3,2494.0,1.8399]
[1750924095963,0.2,2494.3,2494.0,4.44611003]
[1750924096983,0.2,2494.3,2494.0,1.8399]
[1750924097181,0.2,2494.3,2494.0,4.44615477]
[1750924098374,0.2,2494.3,2494.0,1.8399]
[1750924099172,0.7954,2494.4,2494.0,1.8399]
[1750924099377,0.9523,2494.1,2494.0,1.8399]
[1750924099678,2.7023,2494.1,2494.0,1.8399]
[1750924099888,1.22253,2494.1,2494.0,1.8399]
[1750924100179,2.7023,2494.1,2494.0,1.8399]
[1750924102678,0.9523,2494.1,2494.0,1.8399]
[1750924102875,2.7023,2494.1,2494.0,1.8399]
[1750924103660,12.7023,2494.1,2494.0,1.8399]
[1750924104491,19.3173,2494.1,2494.0,1.8399]
[1750924104700,21.24903,2494.1,2494.0,1.8399]
[1750924104857,12.88403,2494.1,2494.0,1.8399]
[1750924105056,12.7023,2494.1,2494.0,1.8399]
[1750924105471,10.9523,2494.1,2494.0,1.8399]
[1750924105656,12.7023,2494.1,2494.0,1.8399]
[1750924109294,10.2,2494.1,2494.0,1.8399]
[1750924112891,0.2,2494.1,2494.0,1.8399]
[1750924113069,1.738,2494.4,2494.0,2.608]
[1750924113272,1.738,2494.5,2494.2,2.60604602]
[1750924113505,1.738,2494.5,2494.0,2.608]
[1750924113686,0.2,2494.4,2494.0,2.808]
[1750924113886,0.2,2494.4,2494.1,2.60614608]
[1750924114086,0.2,2494.4,2494.1,3.40818541]
[1750924114290,0.2,2494.4,2494.2,2.60603477]
[1750924114475,1.738,2494.8,2494.4,2.60577191]
[1750924114674,0.2,2494.6,2494.3,3.42556185]
[1750924115397,0.2,2494.6,2494.3,0.8197]
[1750924116106,0.2,2494.6,2494.4,2.60580696]
[1750924116304,0.2,2494.6,2494.3,3.42558561]
[1750924116673,0.2,2494.6,2494.4,2.60582703]
[1750924117406,0.2,2494.7,2494.4,2.60582703]
[1750924117770,0.2,2494.7,2494.5,2.60572239]
[1750924117975,0.2,2494.7,2494.4,2.60579326]
[1750924118471,0.2,2494.7,2494.4,2.60583707]
[1750924118686,0.2,2494.7,2494.4,3.29927727]
[1750924118886,0.2,2494.7,2494.5,2.60573236]
[1750924119085,0.2,2494.7,2494.4,3.29927447]
[1750924119590,0.2,2494.7,2494.4,0.69349515]
[1750924120307,0.2,2494.7,2494.3,3.62562965]
[1750924121782,0.2,2494.7,2494.4,2.60577297]
[1750924122519,0.2,2494.7,2494.4,2.60582716]
[1750924122723,0.2,2494.7,2494.3,3.62558075]
[1750924123214,0.2,2494.7,2494.4,2.60576573]
[1750924123603,0.2,2494.7,2494.5,2.60567247]
[1750924124213,0.2,2494.7,2494.6,2.60562815]
[1750924124398,0.2,2495.0,2494.7,2.60550279]
[1750924125099,2.5,2495.2,2494.6,3.38457064]
[1750924125315,2.7,2495.2,2494.7,0.2]
[1750924125627,2.7,2495.2,2494.7,2.80548107]
[1750924125919,2.7,2495.2,2494.7,0.2]
[1750924126122,3.86572521,2495.2,2494.6,0.779]
[1750924126416,0.2,2495.0,2494.5,0.2]
[1750924127828,0.2,2494.8,2494.4,0.2]
[1750924128192,3.86572521,2495.2,2494.0,12.3899]
[1750924128193,0.83,2494.7,2494.0,11.8399]
[1750924128411,0.2,2494.6,2494.2,0.2]
[1750924130506,0.2,2494.4,2494.0,2.6712]
[1750924131615,0.7688,2494.3,2494.0,1.8399]
[1750924138796,0.2,2494.2,2494.0,1.8399]
[1750924140494,0.7688,2494.3,2494.0,1.8399]
[1750924141027,2.4958,2494.3,2494.0,1.8399]
[1750924141211,2.84101252,2494.3,2494.0,1.8399]
[1750924141531,0.2,2494.2,2494.0,1.8399]
[1750924141684,0.7933,2494.7,2494.2,0.2]
[1750924142024,0.2,2494.6,2494.2,0.2]
[1750924145828,0.2,2494.6,2494.2,2.80604119]
[1750924145992,0.2,2494.6,2494.2,0.2]
[1750924147537,0.2,2494.5,2494.0,4.64611655]
[1750924147912,0.2,2494.5,2494.0,5.44790254]
[1750924148210,0.2,2494.5,2494.1,2.60614328]
[1750924148912,0.2,2494.5,2494.0,5.44788467]
[1750924149844,0.2,2494.5,2494.0,5.44789788]
[1750924150053,0.2,2494.5,2494.1,2.60608366]
[1750924150208,0.2,2494.5,2494.1,2.60614782]
[1750924150547,0.2,2494.7,2494.3,2.60589501]
[1750924150910,0.2,2494.7,2494.4,2.60578411]
[1750924151145,0.2,2494.7,2494.3,2.60587647]
[1750924152053,1.727,2494.9,2494.5,2.6057281]
[1750924152253,0.2,2494.8,2494.4,2.80578506]
[1750924152956,0.2,2494.8,2494.5,2.60572392]
[1750924153115,0.2,2494.8,2494.4,2.80578227]
[1750924153612,0.2,2494.8,2494.4,0.2]
[1750924153839,0.2,2494.8,2494.4,2.8057829]
[1750924154042,0.2,2494.8,2494.5,2.60571544]
[1750924154342,0.2,2494.8,2494.5,2.60571199]
[1750924154522,0.2,2494.8,2494.4,0.2]
[1750924154945,0.2,2494.8,2494.4,2.80581716]
[1750924155312,0.2,2494.8,2494.4,0.2]
[1750924155544,0.2,2494.8,2494.4,2.80583193]
[1750924156933,0.2,2494.8,2494.5,2.60563005]
[1750924157860,0.2,2494.8,2494.6,2.60560254]
[1750924158030,0.2,2494.8,2494.5,2.60566685]
[1750924159154,0.2,2494.8,2494.4,0.2]
[1750924159354,0.2,2494.8,2494.4,2.80581541]
[1750924159520,0.2,2494.8,2494.5,2.60571964]
[1750924160029,0.2,2494.8,2494.4,2.80576729]
[1750924160230,0.2,2494.8,2494.5,2.60569087]
[1750924160556,0.2,2494.8,2494.5,2.60571776]
[1750924160924,0.2,2494.8,2494.4,2.80577903]
[1750924161322,0.2,2494.8,2494.6,2.6056231]
[1750924162158,0.2,2494.8,2494.5,2.60567976]
[1750924163441,0.2,2494.8,2494.4,2.8057825]
[1750924164368,0.2,2494.8,2494.5,2.60572128]
[1750924164729,0.2,2494.8,2494.4,2.80574863]
[1750924165232,0.2,2494.8,2494.5,2.60573256]
[1750924166168,0.2,2494.8,2494.7,2.60552371]
[1750924166354,0.2,2495.2,2494.8,2.60537219]
[1750924166667,0.2,2495.2,2494.9,2.60523222]
[1750924166853,0.2,2495.2,2494.8,2.60540169]
[1750924167167,0.2,2495.2,2494.8,2.60535909]
[1750924167476,0.2,2495.2,2494.9,2.60530032]
[1750924167966,0.7734,2495.3,2494.9,2.60522946]
[1750924168137,0.7734,2495.3,2494.9,0.2]
[1750924168759,0.7734,2495.3,2494.9,2.80529625]
[1750924170142,0.763,2495.0,2493.8,0.8259]
[1750924170343,1.72935856,2494.9,2494.0,4.44610515]
[1750924170532,0.77010941,2494.9,2494.0,1.8399]
[1750924170733,0.763,2494.8,2494.2,2.60599243]
[1750924171063,0.763,2494.8,2494.3,2.60592731]
[1750924171230,0.763,2494.8,2494.2,2.60598745]
[1750924175276,0.763,2494.8,2494.1,10.01699741]
[1750924175632,0.763,2494.8,2494.2,2.60603277]
[1750924176265,0.763,2494.8,2494.1,10.01700047]
[1750924176467,0.763,2494.8,2494.1,7.4109]
[1750924177158,0.763,2494.8,2494.0,1.8399]
[1750924177359,1.72224915,2494.8,2494.0,8.4199]
[1750924177566,0.7507,2494.7,2494.0,8.4199]
[1750924178152,0.7507,2494.7,2494.0,8.4249]
[1750924180078,0.2,2494.4,2494.0,8.4249]
[1750924181049,0.8129,2494.3,2494.0,8.4249]
[1750924183745,0.8129,2494.3,2494.0,8.3749]
[1750924186261,0.8129,2494.3,2494.0,8.3699]
[1750924188252,0.8129,2494.3,2494.0,1.7899]
[1750924188453,0.8129,2494.3,2494.0,8.3699]
[1750924189656,0.8129,2494.3,2494.0,1.7899]
[1750924195484,0.2,2494.2,2494.0,1.7899]
[1750924195664,0.8026,2494.1,2494.0,1.7899]
[1750924196078,21.26724457,2494.1,2492.9,0.8011]
[1750924196287,0.7823,2493.8,2492.9,0.8011]
[1750924196472,0.7823,2493.3,2492.9,0.2]
[1750924197090,0.7823,2493.3,2492.9,2.80736034]
[1750924197260,0.2,2493.4,2492.9,2.80734717]
[1750924197458,1.723,2493.9,2493.1,0.8132]
[1750924197701,0.2,2493.7,2493.3,0.2]
[1750924199599,0.2,2493.7,2493.3,2.80697807]
[1750924199902,0.2,2493.7,2493.3,0.2]
[1750924200766,0.2,2493.7,2493.3,2.806926]
[1750924201102,0.2,2493.7,2493.3,0.2]
[1750924202306,0.8019,2494.0,2493.5,2.60677762]
[1750924202466,0.2,2493.9,2493.5,3.43327762]
[1750924202864,0.8019,2494.2,2493.7,2.6065606]
[1750924203082,1.0019,2494.2,2493.7,2.8065606]
[1750924203876,1.0019,2494.2,2493.7,0.2]
[1750924204413,1.0019,2494.2,2493.7,2.80652606]
[1750924204620,1.0019,2494.2,2493.8,2.60645815]
[1750924204905,1.0019,2494.2,2493.7,2.80651161]
[1750924206267,1.0019,2494.2,2493.7,2.80648658]
[1750924206468,1.0019,2494.2,2493.8,2.60638278]
[1750924208302,0.7791,2494.4,2493.9,2.60631617]
[1750924208601,0.2,2494.3,2494.0,2.60622464]